{"text_format":"1","workbook":"xlsx","n_sheets":2,"sheets":["OGE Report Format","OGE Report Input"],"not_rendered":{"charts":0,"images":0,"macros":1,"external_links":0,"defined_names":2,"comments":0,"pivot_tables":0},"unopened":[],"bounds":{"document_bytes":16777216,"sheet_cells":100000,"rows_first":2000,"rows_last":500,"rows_between":2000,"halvings":0,"cell_chars":16384,"cell_head_chars":4096},"cells_cut":0,"cells_raw":0,"read":"whole","date_system":"1900"}

{"sheet":"OGE Report Format","index":0,"n_rows":203,"n_cols":12,"rows_kept":203,"cut":false,"hidden":false,"merged":[[39,0,42,0],[39,5,39,7],[40,5,40,7],[44,0,47,0],[44,5,44,7],[45,5,45,7],[0,0,0,11],[1,0,8,0],[1,1,2,8],[3,1,3,11],[4,1,4,4],[4,5,6,5],[4,6,6,6],[4,7,6,7],[4,8,6,8],[4,9,6,9],[4,10,6,11],[5,1,5,4],[6,3,6,4],[7,11,8,11],[7,4,8,4],[7,5,8,7],[7,10,8,10],[7,9,8,9],[7,1,8,1],[7,2,8,2],[7,3,8,3],[7,8,8,8],[9,0,12,0],[9,5,9,7],[10,5,10,7],[14,0,17,0],[19,0,22,0],[19,5,19,7],[20,5,20,7],[14,5,14,7],[15,5,15,7],[74,0,77,0],[74,5,74,7],[75,5,75,7],[79,0,82,0],[79,5,79,7],[80,5,80,7],[84,0,87,0],[84,5,84,7],[85,5,85,7],[24,0,27,0],[24,5,24,7],[25,5,25,7],[29,0,32,0],[29,5,29,7],[30,5,30,7],[69,0,72,0],[69,5,69,7],[70,5,70,7],[59,0,62,0],[59,5,59,7],[60,5,60,7],[64,0,67,0],[64,5,64,7],[65,5,65,7],[49,0,52,0],[49,5,49,7],[50,5,50,7],[54,0,57,0],[54,5,54,7],[55,5,55,7],[34,0,37,0],[34,5,34,7],[35,5,35,7],[99,0,102,0],[99,5,99,7],[100,5,100,7],[104,0,107,0],[104,5,104,7],[105,5,105,7],[89,0,92,0],[89,5,89,7],[90,5,90,7],[94,0,97,0],[94,5,94,7],[95,5,95,7],[119,0,122,0],[119,5,119,7],[120,5,120,7],[124,0,127,0],[124,5,124,7],[125,5,125,7],[109,0,112,0],[109,5,109,7],[110,5,110,7],[114,0,117,0],[114,5,114,7],[115,5,115,7],[139,0,142,0],[139,5,139,7],[140,5,140,7],[144,0,147,0],[144,5,144,7],[145,5,145,7],[129,0,132,0],[129,5,129,7],[130,5,130,7],[134,0,137,0],[134,5,134,7],[135,5,135,7],[159,0,162,0],[159,5,159,7],[160,5,160,7],[164,0,167,0],[164,5,164,7],[165,5,165,7],[149,0,152,0],[149,5,149,7],[150,5,150,7],[154,0,157,0],[154,5,154,7],[155,5,155,7],[179,0,182,0],[179,5,179,7],[180,5,180,7],[184,0,187,0],[184,5,184,7],[185,5,185,7],[169,0,172,0],[169,5,169,7],[170,5,170,7],[174,0,177,0],[174,5,174,7],[175,5,175,7],[199,0,202,0],[199,5,199,7],[200,5,200,7],[189,0,192,0],[189,5,189,7],[190,5,190,7],[194,0,197,0],[194,5,194,7],[195,5,195,7]]}
["1353 Travel Report for Securities and Exchange Commission,  for the reporting period"]
["No.","SEMIANNUAL REPORT OF PAYMENTS ACCEPTED FROM A NON-FEDERAL SOURCE",null,null,null,null,null,null,null,"PAGE","OF PAGES","YEAR"]
[null,null,null,null,null,null,null,null,null,1,3,2020]
[null,"This report implements 31 U.S.C. § 1353.  It does not supersede other reports that may have to be filed when travel expenses are accepted under other authority.  For definitions and policies, see 41 CFR part 304-1."]
[null,"Securities and Exchange Commission",null,null,null,"X","REPORTING PERIOD:  OCTOBER 1, 2019 - MARCH 31, 2020",null,"REPORTING PERIOD:  APRIL 1, 2020 - SEPTEMBER 30, 2020",null,"NEGATIVE REPORT"]
[]
[null,"Agency Contact:","Richard Bamber","BamberR@sec.gov"]
[null,"TRAVELER ","EVENT DESCRIPTION & EVENT SPONSOR","EVENT DATE(S) [MM/DD/YYYY-MM/DD/YYYY]:","LOCATION/DATES","BENEFIT SOURCE",null,null,"BENEFIT DESCRIPTION","PAYMENT BY CHECK","PAYMENT \nIN-KIND","TOTAL AMOUNT"]
[]
[1,"TRAVELER NAME","EVENT DESCRIPTION","BEGINNING DATE [MM/DD/YYYY]","LOCATION","BENEFIT SOURCE"]
[null,"ADERTON, ADAM S","HEDGE FUND AND PRIVATE EQUITY ENFORCEMENT & REGULATORY DEVELOPMENTS","2019-10-01","NEW YORK, NY","PRACTICING LAW INSTITUTE",null,null,"Hotel",null,null,0]
[null,"TRAVELER TITLE","EVENT SPONSOR","ENDING DATE[MM/DD/YYYY]","TRAVEL DATES",null,null,null,"Air Transportation",null,"X",302]
[null,"CO-CHIEF, ASSET MANAGEMENT UNIT","PRACTICING LAW INSTITUTE","2019-10-01","9/30/2019 - 10/1/2019",null,null,null,"Meals",null,null,0]
[]
[2,"TRAVELER NAME","EVENT DESCRIPTION","BEGINNING DATE [MM/DD/YYYY]","LOCATION","BENEFIT SOURCE"]
[null,"JACKSON, ROBERT","BUILDING THE FINANCIAL SYSTEM OF THE 21ST CENTURY: AN AGENDA FOR JAPAN AND THE UNITED STATES","2019-10-04","ODAWARA, JAPAN","PROGRAM ON INTERNATIONAL FINANCIAL SYSTEMS",null,null,"Hotel",null,"X",850]
[null,"TRAVELER TITLE","EVENT SPONSOR","ENDING DATE[MM/DD/YYYY]","TRAVEL DATES",null,null,null,"Air Transportation",null,"X",5389.54]
[null,"COMMISSIONER","PROGRAM ON INTERNATIONAL FINANCIAL SYSTEMS","2019-10-07","10/4/2019 - 10/7/2019",null,null,null,"Meals",null,null,0]
[]
[3,"TRAVELER NAME","EVENT DESCRIPTION","BEGINNING DATE [MM/DD/YYYY]","LOCATION","BENEFIT SOURCE"]
[null,"JACQUES, MATTHEW","SPEAK TO ACCOUNTING STUDENTS","2019-10-07","COLUMBUS, OH","OHIO STATE UNIVERSITY",null,null,"Hotel",null,"X",310]
[null,"TRAVELER TITLE","EVENT SPONSOR","ENDING DATE[MM/DD/YYYY]","TRAVEL DATES",null,null,null,"Air Transportation",null,"X",397.27]
[null,"CHIEF ACCOUNTANT","OHIO STATE UNIVERSITY","2019-10-07","10/6/2019 - 10/9/2019",null,null,null,"Meals",null,null,0]
[]
[4,"TRAVELER NAME","EVENT DESCRIPTION","BEGINNING DATE [MM/DD/YYYY]","LOCATION","BENEFIT SOURCE"]
[null,"GONZALEZ, LOURDES","PROGRAM ON BD REGULATION","2019-10-10","NEW YORK, NY","PRACTISING LAW INSTITUTE",null,null,"Hotel",null,"X",419]
[null,"TRAVELER TITLE","EVENT SPONSOR","ENDING DATE[MM/DD/YYYY]","TRAVEL DATES",null,null,null,"Air Transportation",null,"X",386.6]
[null,"ASSISTANT CHIEF COUNSEL","PRACTISING LAW INSTITUTE","2019-10-10","2019-10-10",null,null,null,"Meals",null,"X",242.95]
[]
[5,"TRAVELER NAME","EVENT DESCRIPTION","BEGINNING DATE [MM/DD/YYYY]","LOCATION","BENEFIT SOURCE"]
[null,"ROY, RANDALL W","REGULATION OF SECURITY-BASED SWAP DEALERS","2019-10-22","NEW YORK, NY","PRACTICING LAW INSTITUTE",null,null,"Hotel",null,null,0]
[null,"TRAVELER TITLE","EVENT SPONSOR","ENDING DATE[MM/DD/YYYY]","TRAVEL DATES",null,null,null,"Air Transportation",null,"X",366]
[null,"DEPUTY ASSOCIATE DIRECTOR","PRACTICING LAW INSTITUTE","2019-10-22","2019-10-22",null,null,null,"Meals",null,null,0]
[]
[6,"TRAVELER NAME","EVENT DESCRIPTION","BEGINNING DATE [MM/DD/YYYY]","LOCATION","BENEFIT SOURCE"]
[null,"MCGEE, CAROL","ADVANCED SWAPS AND DERIVATIVES ","2019-10-22","NEW YORK, NY","PRACTISING LAW INSTITUTE",null,null,"Hotel",null,null,0]
[null,"TRAVELER TITLE","EVENT SPONSOR","ENDING DATE[MM/DD/YYYY]","TRAVEL DATES",null,null,null,"Air Transportation",null,"X",366]
[null,"ASSISTANT DIRECTOR","PRACTISING LAW INSTITUTE","2019-10-22","2019-10-22",null,null,null,"Meals",null,null,0]
[]
[7,"TRAVELER NAME","EVENT DESCRIPTION","BEGINNING DATE [MM/DD/YYYY]","LOCATION","BENEFIT SOURCE"]
[null,"LEVIN, JOEL R","2019 MIDWEST SECURITIES CONFERENCE","2019-10-24","EAST LANSING, MI","MICHIGAN STATE UNIVERSITY COLLEGE OF LAW",null,null,"Hotel",null,"X",191]
[null,"TRAVELER TITLE","EVENT SPONSOR","ENDING DATE[MM/DD/YYYY]","TRAVEL DATES",null,null,null,"Air Transportation",null,"X",233.82]
[null,"DIRECTOR","MICHIGAN STATE UNIVERSITY COLLEGE OF LAW","2019-10-25","10/24/2019 - 10/25/2019",null,null,null,"Meals",null,"X",63]
[]
[8,"TRAVELER NAME","EVENT DESCRIPTION","BEGINNING DATE [MM/DD/YYYY]","LOCATION","BENEFIT SOURCE"]
[null,"BIRKENHEIER, JOHN E","2019 MIDWEST SECURITIES CONFERENCE","2019-10-24","EAST LANSING, MI","MICHIGAN STATE UNIVERSITY COLLEGE OF LAW",null,null,"Hotel",null,"X",190.97]
[null,"TRAVELER TITLE","EVENT SPONSOR","ENDING DATE[MM/DD/YYYY]","TRAVEL DATES",null,null,null,"Air Transportation",null,"X",254.01]
[null,"SUPERVISORY TRIAL COUNSEL","MICHIGAN STATE UNIVERSITY COLLEGE OF LAW","2019-10-25","10/24/2019 - 10/26/2019",null,null,null,"Meals",null,null,0]
[]
[9,"TRAVELER NAME","EVENT DESCRIPTION","BEGINNING DATE [MM/DD/YYYY]","LOCATION","BENEFIT SOURCE"]
[null,"MCCARTHY, JENNIFER E","MIDWEST SECURITIES CONFERENCE","2019-10-25","EAST LANSING, MI","MICHIGAN STATE UNIVERSITY COLLEGE OF LAW",null,null,"Hotel",null,null,0]
[null,"TRAVELER TITLE","EVENT SPONSOR","ENDING DATE[MM/DD/YYYY]","TRAVEL DATES",null,null,null,"Air Transportation",null,"X",555.64]
[null,"ASSISTANT DIRECTOR","MICHIGAN STATE UNIVERSITY COLLEGE OF LAW","2019-10-25","2019-10-25",null,null,null,"Meals",null,null,0]
[]
[10,"TRAVELER NAME","EVENT DESCRIPTION","BEGINNING DATE [MM/DD/YYYY]","LOCATION","BENEFIT SOURCE"]
[null,"BARTELS, DAVID P","22ND ANNUAL CONFERENCE","2019-11-02","LONDON, ENGLAND","INVESTOR REGULATION",null,null,"Hotel",null,"X",900]
[null,"TRAVELER TITLE","EVENT SPONSOR","ENDING DATE[MM/DD/YYYY]","TRAVEL DATES",null,null,null,"Air Transportation",null,"X",938.83]
[null,"ASSOCIATE DIRECTOR","INVESTOR REGULATION","2019-11-07","11/2/2019 - 11/7/2019",null,null,null,"Meals",null,null,0]
[]
[11,"TRAVELER NAME","EVENT DESCRIPTION","BEGINNING DATE [MM/DD/YYYY]","LOCATION","BENEFIT SOURCE"]
[null,"CHANDRASEKHAR, CHARU","LECTURE TO BUSINESS SCHOOL CLASS","2019-11-04","NEW ORLEANS, LA","TULANE UNIVERSITY, AB FREEMAN SCHOOL OF BUSINESS",null,null,"Hotel",null,null,0]
[null,"TRAVELER TITLE","EVENT SPONSOR","ENDING DATE[MM/DD/YYYY]","TRAVEL DATES",null,null,null,"Air Transportation",null,"X",450]
[null,"ASSISTANT REGIONAL DIRECTOR","TULANE UNIVERSITY, AB FREEMAN SCHOOL OF BUSINESS","2019-11-04","2019-11-04",null,null,null,"Meals",null,null,0]
[]
[12,"TRAVELER NAME","EVENT DESCRIPTION","BEGINNING DATE [MM/DD/YYYY]","LOCATION","BENEFIT SOURCE"]
[null,"MOFFATT, KYLE","51ST ANNUAL INSTITUTE ON SECURITIES REGULATION","2019-11-04","NEW YORK, NY","PRACTICING LAW INSTITUTE",null,null,"Hotel",null,"X",400]
[null,"TRAVELER TITLE","EVENT SPONSOR","ENDING DATE[MM/DD/YYYY]","TRAVEL DATES",null,null,null,"Air Transportation",null,"X",400]
[null,"ASSOCIATE DIRECTOR","PRACTICING LAW INSTITUTE","2019-11-05","11/4/2019 - 11/5/2019",null,null,null,"Meals",null,null,0]
[]
[13,"TRAVELER NAME","EVENT DESCRIPTION","BEGINNING DATE [MM/DD/YYYY]","LOCATION","BENEFIT SOURCE"]
[null,"CHION, ANTONIA","SEC REGULATION OUTSIDE THE UNITED STATES","2019-11-04","LONDON, ENGLAND","INVESTOR REGULATION",null,null,"Hotel",null,"X",870]
[null,"TRAVELER TITLE","EVENT SPONSOR","ENDING DATE[MM/DD/YYYY]","TRAVEL DATES",null,null,null,"Air Transportation",null,"X",900]
[null,"ASSOCIATE DIRECTOR","INVESTOR REGULATION","2019-11-10","11/4/2019 - 11/10/2019",null,null,null,"Meals",null,null,0]
[]
[14,"TRAVELER NAME","EVENT DESCRIPTION","BEGINNING DATE [MM/DD/YYYY]","LOCATION","BENEFIT SOURCE"]
[null,"LUISI, SHELLY C","51ST ANNUAL INSTITUTE ON SECURITIES REGULATION","2019-11-04","NEW YORK, NY","PRACTICING LAW INSTITUTE",null,null,"Hotel",null,null,0]
[null,"TRAVELER TITLE","EVENT SPONSOR","ENDING DATE[MM/DD/YYYY]","TRAVEL DATES",null,null,null,"Air Transportation",null,"X",462]
[null,"ASSOCIATE DIRECTOR","PRACTICING LAW INSTITUTE","2019-11-04","2019-11-04",null,null,null,"Meals",null,null,0]
[]
[15,"TRAVELER NAME","EVENT DESCRIPTION","BEGINNING DATE [MM/DD/YYYY]","LOCATION","BENEFIT SOURCE"]
[null,"ZEPRALKA, JENNIFER","51ST ANNUAL INSTITUTE ON SECURITIES REGULATION","2019-11-04","NEW YORK, NY","PRACTICING LAW INSTITUTE",null,null,"Hotel",null,null,0]
[null,"TRAVELER TITLE","EVENT SPONSOR","ENDING DATE[MM/DD/YYYY]","TRAVEL DATES",null,null,null,"Air Transportation",null,"X",400]
[null,"OFFICE CHIEF","PRACTICING LAW INSTITUTE","2019-11-06","11/4/2019 - 11/6/2019",null,null,null,"Meals",null,null,0]
[]
[16,"TRAVELER NAME","EVENT DESCRIPTION","BEGINNING DATE [MM/DD/YYYY]","LOCATION","BENEFIT SOURCE"]
[null,"KELLY, MAVIS A","SEC REGULATION OUTSIDE THE UNITED STATES","2019-11-04","LONDON, ENGLAND","INVESTOR REGULATION",null,null,"Hotel",null,"X",923.6]
[null,"TRAVELER TITLE","EVENT SPONSOR","ENDING DATE[MM/DD/YYYY]","TRAVEL DATES",null,null,null,"Air Transportation",null,"X",859.23]
[null,"ASSISTANT DIRECTOR ","INVESTOR REGULATION","2019-11-06","11/4/2019 - 11/6/2019",null,null,null,"Meals",null,null,0]
[]
[17,"TRAVELER NAME","EVENT DESCRIPTION","BEGINNING DATE [MM/DD/YYYY]","LOCATION","BENEFIT SOURCE"]
[null,"AVAKIAN, STEPHANIE","SEC REGULATION OUTSIDE THE UNITED STATES","2019-11-04","LONDON, ENGLAND","INVESTOR REGULATION",null,null,"Hotel",null,"X",217.5]
[null,"TRAVELER TITLE","EVENT SPONSOR","ENDING DATE[MM/DD/YYYY]","TRAVEL DATES",null,null,null,"Air Transportation",null,"X",1752.51]
[null,"CO-DIRECTOR","INVESTOR REGULATION","2019-11-05","11/4/2019 - 11/5/2019",null,null,null,"Meals",null,null,100]
[]
[18,"TRAVELER NAME","EVENT DESCRIPTION","BEGINNING DATE [MM/DD/YYYY]","LOCATION","BENEFIT SOURCE"]
[null,"SUMMER, BARRY","SEC REGULATION OUTSIDE THE UNITED STATES","2019-11-05","LONDON, ENGLAND","INVESTOR REGULATION",null,null,"Hotel",null,null,0]
[null,"TRAVELER TITLE","EVENT SPONSOR","ENDING DATE[MM/DD/YYYY]","TRAVEL DATES",null,null,null,"Air Transportation",null,"X",856]
[null,"ASSOCIATE DIRECTOR","INVESTOR REGULATION","2019-11-05","11/2/2019 - 11/6/2019",null,null,null,"Meals",null,null,0]
[]
[19,"TRAVELER NAME","EVENT DESCRIPTION","BEGINNING DATE [MM/DD/YYYY]","LOCATION","BENEFIT SOURCE"]
[null,"CHALK, CHRISTINA ","51ST ANNUAL INSTITUTE ON SECURITIES REGULATION","2019-11-05","NEW YORK, NY","PRACTICING LAW INSTITUTE",null,null,"Hotel",null,null,0]
[null,"TRAVELER TITLE","EVENT SPONSOR","ENDING DATE[MM/DD/YYYY]","TRAVEL DATES",null,null,null,"Air Transportation",null,"X",432]
[null,"SENIOR SPECIAL COUNSEL","PRACTICING LAW INSTITUTE","2019-11-05","2019-11-05",null,null,null,"Meals",null,null,0]
[]
[20,"TRAVELER NAME","EVENT DESCRIPTION","BEGINNING DATE [MM/DD/YYYY]","LOCATION","BENEFIT SOURCE"]
[null,"ALEXANDER, CINDY","LAW AND ECONOMICS SEMINAR","2019-11-18","CHARLOTTESVILLE, VA","UNIVERSITY OF VIRGINIA SCHOOL OF LAW",null,null,"Hotel",null,"X",400]
[null,"TRAVELER TITLE","EVENT SPONSOR","ENDING DATE[MM/DD/YYYY]","TRAVEL DATES",null,null,null,"Air Transportation",null,null,0]
[null,"FINANCIAL ECONOMIST ","UNIVERSITY OF VIRGINIA SCHOOL OF LAW","2019-11-20","11/18/2019 - 11/20/2019",null,null,null,"Meals",null,null,0]
[]
[21,"TRAVELER NAME","EVENT DESCRIPTION","BEGINNING DATE [MM/DD/YYYY]","LOCATION","BENEFIT SOURCE"]
[null,"JACKSON, ROBERT","LECTURE ON THE 45TH ANNIVERSARY OF COMMISSIONER AA SOMMER'S NOTRE DAME ADDRESS","2019-11-22","SOUTH BEND, IN","NOTRE DAME UNIVERSITY - MENDOZA COLLEGE OF BUSINESS",null,null,"Hotel",null,"X",350]
[null,"TRAVELER TITLE","EVENT SPONSOR","ENDING DATE[MM/DD/YYYY]","TRAVEL DATES",null,null,null,"Air Transportation",null,"X",739.06]
[null,"COMMISSIONER","NOTRE DAME UNIVERSITY - MENDOZA COLLEGE OF BUSINESS","2019-11-22","11/21/2019 - 11/23/2019",null,null,null,"Meals",null,null,0]
[]
[22,"TRAVELER NAME","EVENT DESCRIPTION","BEGINNING DATE [MM/DD/YYYY]","LOCATION","BENEFIT SOURCE"]
[null,"ARMELIN, PATRICIA","35TH ANNUAL SEC REPORTING AND FASB FORUM","2019-12-01","SAN FRANCISCO, CA","PRACTISING LAW INSTITIUTE",null,null,"Hotel",null,"X",290.45999999999998]
[null,"TRAVELER TITLE","EVENT SPONSOR","ENDING DATE[MM/DD/YYYY]","TRAVEL DATES",null,null,null,"Air Transportation",null,"X",1252.5999999999999]
[null,"ASSOCIATE CHIEF ACCOUNTANT ","PRACTISING LAW INSTITIUTE","2019-12-02","12/1/2019 - 12/2/2019",null,null,null,"Meals",null,null,0]
[]
[23,"TRAVELER NAME","EVENT DESCRIPTION","BEGINNING DATE [MM/DD/YYYY]","LOCATION","BENEFIT SOURCE"]
[null,"DEANE, STEPHEN ","ASSET MANAGEMENT, INDEX FUNDS AND ETFS","2019-12-09","NEW HAVEN, CT","YALE LAW SCHOOL CENTER FOR THE STUDY OF CORPORATE LAW",null,null,"Hotel",null,"X",772]
[null,"TRAVELER TITLE","EVENT SPONSOR","ENDING DATE[MM/DD/YYYY]","TRAVEL DATES",null,null,null,"Air Transportation",null,null,0]
[null,"ENGAGEMENT ADVISOR","YALE LAW SCHOOL CENTER FOR THE STUDY OF CORPORATE LAW","2019-12-09","12/8/2019 - 12/10/2019",null,null,null,"Meals",null,null,0]
[]
[24,"TRAVELER NAME","EVENT DESCRIPTION","BEGINNING DATE [MM/DD/YYYY]","LOCATION","BENEFIT SOURCE"]
[null,"BLASS, DALIA","  2019 WEIL, GOTSHAL & MANGES ROUNDTABLE","2019-12-09","NEW HAVEN, CT","YALE LAW SCHOOL CENTER FOR THE STUDY OF CORPORATE LAW",null,null,"Hotel",null,null,0]
[null,"TRAVELER TITLE","EVENT SPONSOR","ENDING DATE[MM/DD/YYYY]","TRAVEL DATES",null,null,null,"Air Transportation",null,"X",521.82000000000005]
[null,"DIRECTOR","YALE LAW SCHOOL CENTER FOR THE STUDY OF CORPORATE LAW","2019-12-09","2019-12-09",null,null,null,"Meals",null,null,0]
[]
[25,"TRAVELER NAME","EVENT DESCRIPTION","BEGINNING DATE [MM/DD/YYYY]","LOCATION","BENEFIT SOURCE"]
[null,"JACKSON, ROBERT","EMERGING MARKETS FINANCE CONFERENCE","2019-12-12","MUMBAI, INDIA","VANDERBILT LAW SCHOOL",null,null,"Hotel",null,"X",500]
[null,"TRAVELER TITLE","EVENT SPONSOR","ENDING DATE[MM/DD/YYYY]","TRAVEL DATES",null,null,null,"Air Transportation",null,"X",1843.82]
[null,"COMMISSIONER","VANDERBILT LAW SCHOOL","2019-12-14","12/11/2019 - 12/15/2019",null,null,null,"Meals",null,null,0]
[]
[26,"TRAVELER NAME","EVENT DESCRIPTION","BEGINNING DATE [MM/DD/YYYY]","LOCATION","BENEFIT SOURCE"]
[null,"GILMORE, PATRICK","ANNUAL SEC REPORTING & FASB FORUM","2019-12-15","NEW YORK, NY","PRACTISING LAW INSTITUTE",null,null,"Hotel",null,"X",237]
[null,"TRAVELER TITLE","EVENT SPONSOR","ENDING DATE[MM/DD/YYYY]","TRAVEL DATES",null,null,null,"Air Transportation",null,"X",400]
[null,"DEPUTY CHIEF ACCOUNTANT","PRACTISING LAW INSTITUTE","2019-12-16","12/15/2019 -12/16/2019",null,null,null,"Meals",null,null,0]
[]
[27,"TRAVELER NAME","EVENT DESCRIPTION","BEGINNING DATE [MM/DD/YYYY]","LOCATION","BENEFIT SOURCE"]
[null,"YU, TED","“MERGERS & ACQUISITIONS 2020: ADVANCED TRENDS AND DEVELOPMENTS\"","2020-01-08","NEW YORK, NY","PRACTISING LAW INSTITUTE",null,null,"Hotel",null,"X",199]
[null,"TRAVELER TITLE","EVENT SPONSOR","ENDING DATE[MM/DD/YYYY]","TRAVEL DATES",null,null,null,"Air Transportation",null,"X",366]
[null,"OFFICE CHIEF","PRACTISING LAW INSTITUTE","2020-01-09","1/8/2020 - 1/9/2020",null,null,null,"Meals",null,null,0]
[]
[28,"TRAVELER NAME","EVENT DESCRIPTION","BEGINNING DATE [MM/DD/YYYY]","LOCATION","BENEFIT SOURCE"]
[null,"JACKSON, ROBERT","RICE UNIVERSITY VISIT","2020-01-16","HOUSTON, TX","RICE UNIVERSITY",null,null,"Hotel",null,"X",223.95]
[null,"TRAVELER TITLE","EVENT SPONSOR","ENDING DATE[MM/DD/YYYY]","TRAVEL DATES",null,null,null,"Air Transportation",null,"X",897.38]
[null,"COMMISSIONER","RICE UNIVERSITY","2020-01-17","1/15/2020 - 1/17/2020",null,null,null,"Meals",null,null,0]
[]
[29,"TRAVELER NAME","EVENT DESCRIPTION","BEGINNING DATE [MM/DD/YYYY]","LOCATION","BENEFIT SOURCE"]
[null,"HU, EDWIN","RICE UNIVERSITY VISIT","2020-01-16","HOUSTON, TX","RICE UNIVERSITY ",null,null,"Hotel",null,"X",212.25]
[null,"TRAVELER TITLE","EVENT SPONSOR","ENDING DATE[MM/DD/YYYY]","TRAVEL DATES",null,null,null,"Air Transportation",null,"X",392.6]
[null,"COUNSEL TO COMMISSIONER ","RICE UNIVERSITY ","2020-01-17","1/16/2020 - 1/17/2020",null,null,null,"Meals",null,null,0]
[]
[30,"TRAVELER NAME","EVENT DESCRIPTION","BEGINNING DATE [MM/DD/YYYY]","LOCATION","BENEFIT SOURCE"]
[null,"JACKSON, ROBERT","UBC FINANCE SEMINAR","2020-01-30","VANCOUVER, CANADA","UNIVERSITY OF BRITISH COLUMBIA",null,null,"Hotel",null,"X",487]
[null,"TRAVELER TITLE","EVENT SPONSOR","ENDING DATE[MM/DD/YYYY]","TRAVEL DATES",null,null,null,"Air Transportation",null,"X",400]
[null,"COMMISSIONER","UNIVERSITY OF BRITISH COLUMBIA","2020-01-31","1/30/2020 - 1/31/2020",null,null,null,"Meals",null,null,0]
[]
[31,"TRAVELER NAME","EVENT DESCRIPTION","BEGINNING DATE [MM/DD/YYYY]","LOCATION","BENEFIT SOURCE"]
[null,"JACKSON, ROBERT","UNIVERSITY OF UTAH'S LAW, ECONOMICS & BUSINESS COLLOQUIUM","2020-02-02","SALT LAKE CITY, UT","UNIVERSITY OF UTAH",null,null,"Hotel",null,"X",467.3]
[null,"TRAVELER TITLE","EVENT SPONSOR","ENDING DATE[MM/DD/YYYY]","TRAVEL DATES",null,null,null,"Air Transportation",null,"X",430.24]
[null,"COMMISSIONER","UNIVERSITY OF UTAH","2020-02-03","2/2/2020 - 2/3/2020",null,null,null,"Meals",null,null,0]
[]
[32,"TRAVELER NAME","EVENT DESCRIPTION","BEGINNING DATE [MM/DD/YYYY]","LOCATION","BENEFIT SOURCE"]
[null,"VANOSDALL, JOHN P","ANNUAL SECURITIES REGULATION IN EUROPE","2020-02-06","LONDON, ENGLAND","PRACTISING LAW INSTITUTE",null,null,"Hotel",null,"X",600]
[null,"TRAVELER TITLE","EVENT SPONSOR","ENDING DATE[MM/DD/YYYY]","TRAVEL DATES",null,null,null,"Air Transportation",null,"X",2604]
[null,"DEPUTY CHIEF ACCOUNTANT","PRACTISING LAW INSTITUTE","2020-02-07","2/6/2020 - 2/7/2020",null,null,null,"Meals",null,null,0]
[]
[33,"TRAVELER NAME","EVENT DESCRIPTION","BEGINNING DATE [MM/DD/YYYY]","LOCATION","BENEFIT SOURCE"]
[null,"HINMAN, WILLIAM","19TH ANNUAL INSTITUTE ON SECURITIES REGULATION IN EUROPE","2020-02-06","LONDON, ENGLAND","PRACTISING LAW INSTITUTE",null,null,"Hotel",null,"X",608]
[null,"TRAVELER TITLE","EVENT SPONSOR","ENDING DATE[MM/DD/YYYY]","TRAVEL DATES",null,null,null,"Air Transportation",null,"X",998.68]
[null,"DIRECTOR","PRACTISING LAW INSTITUTE","2020-02-07","2/5/2020 - 2/9/2020",null,null,null,"Meals",null,null,0]
[]
[34,"TRAVELER NAME","EVENT DESCRIPTION","BEGINNING DATE [MM/DD/YYYY]","LOCATION","BENEFIT SOURCE"]
[null,"BANDY, ANITA","19TH ANNUAL INSTITUTE ON SECURITIES REGULATION IN EUROPE","2020-02-06","LONDON, ENGLAND","PRACTISING LAW INSTITUTE",null,null,"Hotel",null,"X",1520]
[null,"TRAVELER TITLE","EVENT SPONSOR","ENDING DATE[MM/DD/YYYY]","TRAVEL DATES",null,null,null,"Air Transportation",null,"X",872.05]
[null,"ASSOCIATE DIRECTOR ","PRACTISING LAW INSTITUTE","2020-02-07","2/4/2020 - 2/9/2020",null,null,null,"Meals",null,null,0]
[]
[35,"TRAVELER NAME","EVENT DESCRIPTION","BEGINNING DATE [MM/DD/YYYY]","LOCATION","BENEFIT SOURCE"]
[null,"TEN SIETHOFF, SARAH ","REG BI CONFERENCE","2020-02-10","AUSTIN, TX","THE UNIVERSITY OF TEXAS AT AUSTIN",null,null,"Hotel",null,null,0]
[null,"TRAVELER TITLE","EVENT SPONSOR","ENDING DATE[MM/DD/YYYY]","TRAVEL DATES",null,null,null,"Air Transportation",null,"X",376]
[null,"ASSOCIATE DIRECTOR","THE UNIVERSITY OF TEXAS AT AUSTIN","2020-02-11","2/9/2020 - 2/11/2020",null,null,null,"Meals",null,"X",100]
[]
[36,"TRAVELER NAME","EVENT DESCRIPTION","BEGINNING DATE [MM/DD/YYYY]","LOCATION","BENEFIT SOURCE"]
[null,"GONZALEZ, LOURDES","PROGRAM ON REGULATION BEST INTEREST","2020-02-20","NEW YORK, NY","PRACTISING LAW INSTITUTE",null,null,"Hotel",null,null,0]
[null,"TRAVELER TITLE","EVENT SPONSOR","ENDING DATE[MM/DD/YYYY]","TRAVEL DATES",null,null,null,"Air Transportation",null,"X",696.81]
[null,"ASSISTANT CHIEF COUNSEL - SALES PRACTICES","PRACTISING LAW INSTITUTE","2020-02-20","2/19/2020 - 2/20/2020",null,null,null,"Meals",null,"X",182.6]
[]
[37,"TRAVELER NAME","EVENT DESCRIPTION","BEGINNING DATE [MM/DD/YYYY]","LOCATION","BENEFIT SOURCE"]
[null,"JACQUES, MATTHEW","ACCOUNTING FRAUD","2020-03-04","PHILDELPHIA, PA","THE WHARTON SCHOOL",null,null,"Hotel",null,null,0]
[null,"TRAVELER TITLE","EVENT SPONSOR","ENDING DATE[MM/DD/YYYY]","TRAVEL DATES",null,null,null,"Air Transportation",null,"X",277.52]
[null,"CHIEF ACCOUNTANT","THE WHARTON SCHOOL","2020-03-05","3/4/2020 -3/5/2020",null,null,null,"Meals",null,null,0]
[]
[38,"TRAVELER NAME","EVENT DESCRIPTION","BEGINNING DATE [MM/DD/YYYY]","LOCATION","BENEFIT SOURCE"]
[null,"AVAKIAN, STEPHANIE"," SEC ENFORCEMENT","2020-03-04","PRINCETON, NJ","PRINCETON UNIVERSITY",null,null,"Hotel",null,"X",172]
[null,"TRAVELER TITLE","EVENT SPONSOR","ENDING DATE[MM/DD/YYYY]","TRAVEL DATES",null,null,null,"Air Transportation",null,"X",230]
[null,"CO-DIRECTOR","PRINCETON UNIVERSITY","2020-03-05","3/4/2020 -3/5/2020",null,null,null,"Meals",null,"X",75]
[]
[39,"TRAVELER NAME","EVENT DESCRIPTION","BEGINNING DATE [MM/DD/YYYY]","LOCATION","BENEFIT SOURCE"]
[null,"TEOTIA, SAGAR","CORPORATE GOVERNANCE ","2020-03-06","NEW YORK, NY","PRACTISING LAW INSTITUTE",null,null,"Hotel",null,"X",262]
[null,"TRAVELER TITLE","EVENT SPONSOR","ENDING DATE[MM/DD/YYYY]","TRAVEL DATES",null,null,null,"Air Transportation",null,"X",498]
[null,"CHIEF ACCOUNTANT","PRACTISING LAW INSTITUTE","2020-03-06","2020-03-06",null,null,null,"Meals",null,null,0]

{"sheet":"OGE Report Input","index":1,"n_rows":41,"n_cols":21,"rows_kept":41,"cut":false,"hidden":false,"merged":[[0,17,0,19],[0,9,0,11],[0,13,0,15]]}
[null,null,null,null,null,null,null,null,null,"PAYMENT BY CHECK",null,null,null,"PAYMENT IN-KIND",null,null,null,"TOTAL AMOUNTS"]
["TRAVELER NAME","TRAVELER TITLE","EVENT DESCRIPTION","EVENT SPONSOR","BEGINNING DATE [MM/DD/YYYY]","ENDING DATE [MM/DD/YYYY]","LOCATION","TRAVEL DATE(S)","BENEFIT SOURCE","HOTEL","AIR TRANSPORTATION","MEALS",null,"HOTEL","AIR TRANSPORTATION","MEALS",null,"HOTEL","AIR TRANSPORTATION","MEALS"]
["ADERTON, ADAM S","CO-CHIEF, ASSET MANAGEMENT UNIT","HEDGE FUND AND PRIVATE EQUITY ENFORCEMENT & REGULATORY DEVELOPMENTS","PRACTICING LAW INSTITUTE","2019-10-01","2019-10-01","NEW YORK, NY","9/30/2019 - 10/1/2019",{"$f":"D3","v":"PRACTICING LAW INSTITUTE"},null,null,null,null,null,"X",null,null,null,302,null,{"$f":"SUM(R3:T3)","v":302}]
["JACKSON, ROBERT","COMMISSIONER","BUILDING THE FINANCIAL SYSTEM OF THE 21ST CENTURY: AN AGENDA FOR JAPAN AND THE UNITED STATES","PROGRAM ON INTERNATIONAL FINANCIAL SYSTEMS","10/4/2019","10/7/2019","ODAWARA, JAPAN","10/4/2019 - 10/7/2019","PROGRAM ON INTERNATIONAL FINANCIAL SYSTEMS",null,null,null,null,"X","X",null,null,850,5389.54,null,6239.54]
["JACQUES, MATTHEW","CHIEF ACCOUNTANT","SPEAK TO ACCOUNTING STUDENTS","OHIO STATE UNIVERSITY","2019-10-07","2019-10-07","COLUMBUS, OH","10/6/2019 - 10/9/2019",{"$f":"D5","v":"OHIO STATE UNIVERSITY"},null,null,null,null,"X","X",null,null,310,397.27,null,707.27]
["GONZALEZ, LOURDES","ASSISTANT CHIEF COUNSEL","PROGRAM ON BD REGULATION","PRACTISING LAW INSTITUTE","2019-10-10","2019-10-10","NEW YORK, NY","2019-10-10",{"$f":"D6","v":"PRACTISING LAW INSTITUTE"},null,null,null,null,"X","X","X",null,419,386.6,242.95,1048.55]
["ROY, RANDALL W","DEPUTY ASSOCIATE DIRECTOR","REGULATION OF SECURITY-BASED SWAP DEALERS","PRACTICING LAW INSTITUTE","2019-10-22","2019-10-22","NEW YORK, NY","2019-10-22",{"$f":"D7","v":"PRACTICING LAW INSTITUTE"},null,null,null,null,null,"X",null,null,null,366,null,366]
["MCGEE, CAROL","ASSISTANT DIRECTOR","ADVANCED SWAPS AND DERIVATIVES ","PRACTISING LAW INSTITUTE","2019-10-22","2019-10-22","NEW YORK, NY","2019-10-22",{"$f":"D8","v":"PRACTISING LAW INSTITUTE"},null,null,null,null,null,"X",null,null,null,366,null,366]
["LEVIN, JOEL R","DIRECTOR","2019 MIDWEST SECURITIES CONFERENCE","MICHIGAN STATE UNIVERSITY COLLEGE OF LAW","2019-10-24","2019-10-25","EAST LANSING, MI","10/24/2019 - 10/25/2019","MICHIGAN STATE UNIVERSITY COLLEGE OF LAW",null,null,null,null,"X","X","X",null,191,233.82,63,{"$f":"SUM(R9:T9)","v":487.82}]
["BIRKENHEIER, JOHN E","SUPERVISORY TRIAL COUNSEL","2019 MIDWEST SECURITIES CONFERENCE","MICHIGAN STATE UNIVERSITY COLLEGE OF LAW","2019-10-24","2019-10-25","EAST LANSING, MI","10/24/2019 - 10/26/2019","MICHIGAN STATE UNIVERSITY COLLEGE OF LAW",null,null,null,null,"X","X",null,null,190.97,254.01,null,444.98]
["MCCARTHY, JENNIFER E","ASSISTANT DIRECTOR","MIDWEST SECURITIES CONFERENCE","MICHIGAN STATE UNIVERSITY COLLEGE OF LAW","2019-10-25","2019-10-25","EAST LANSING, MI","2019-10-25",{"$f":"D11","v":"MICHIGAN STATE UNIVERSITY COLLEGE OF LAW"},null,null,null,null,null,"X",null,null,null,555.64,null,{"$f":"SUM(R11:T11)","v":555.64}]
["BARTELS, DAVID P","ASSOCIATE DIRECTOR","22ND ANNUAL CONFERENCE","INVESTOR REGULATION","2019-11-02","2019-11-07","LONDON, ENGLAND","11/2/2019 - 11/7/2019","INVESTOR REGULATION",null,null,null,null,"X","X",null,null,900,938.83,null,1838.83]
["CHANDRASEKHAR, CHARU","ASSISTANT REGIONAL DIRECTOR","LECTURE TO BUSINESS SCHOOL CLASS","TULANE UNIVERSITY, AB FREEMAN SCHOOL OF BUSINESS","2019-11-04","2019-11-04","NEW ORLEANS, LA","2019-11-04",{"$f":"D13","v":"TULANE UNIVERSITY, AB FREEMAN SCHOOL OF BUSINESS"},null,null,null,null,null,"X",null,null,null,450,null,{"$f":"SUM(R13:T13)","v":450}]
["MOFFATT, KYLE","ASSOCIATE DIRECTOR","51ST ANNUAL INSTITUTE ON SECURITIES REGULATION","PRACTICING LAW INSTITUTE","2019-11-04","2019-11-05","NEW YORK, NY","11/4/2019 - 11/5/2019","PRACTICING LAW INSTITUTE",null,null,null,null,"X","X",null,null,400,400,null,800]
["CHION, ANTONIA","ASSOCIATE DIRECTOR","SEC REGULATION OUTSIDE THE UNITED STATES","INVESTOR REGULATION","2019-11-04","2019-11-10","LONDON, ENGLAND","11/4/2019 - 11/10/2019","INVESTOR REGULATION",null,null,null,null,"X","X",null,null,870,900,null,1770]
["LUISI, SHELLY C","ASSOCIATE DIRECTOR","51ST ANNUAL INSTITUTE ON SECURITIES REGULATION","PRACTICING LAW INSTITUTE","2019-11-04","2019-11-04","NEW YORK, NY","2019-11-04","PRACTICING LAW INSTITUTE",null,null,null,null,null,"X",null,null,null,462,null,462]
["ZEPRALKA, JENNIFER","OFFICE CHIEF","51ST ANNUAL INSTITUTE ON SECURITIES REGULATION","PRACTICING LAW INSTITUTE","2019-11-04","2019-11-06","NEW YORK, NY","11/4/2019 - 11/6/2019","PRACTICING LAW INSTITUTE",null,null,null,null,null,"X",null,null,null,400,null,400]
["KELLY, MAVIS A","ASSISTANT DIRECTOR ","SEC REGULATION OUTSIDE THE UNITED STATES","INVESTOR REGULATION","2019-11-04","2019-11-06","LONDON, ENGLAND","11/4/2019 - 11/6/2019","INVESTOR REGULATION",null,null,null,null,"X","X",null,null,923.6,859.23,null,1782.83]
["AVAKIAN, STEPHANIE","CO-DIRECTOR","SEC REGULATION OUTSIDE THE UNITED STATES","INVESTOR REGULATION","2019-11-04","2019-11-05","LONDON, ENGLAND","11/4/2019 - 11/5/2019","INVESTOR REGULATION",null,null,null,null,"X","X",null,null,217.5,1752.51,100,2070.0100000000002]
["SUMMER, BARRY","ASSOCIATE DIRECTOR","SEC REGULATION OUTSIDE THE UNITED STATES","INVESTOR REGULATION","2019-11-05","2019-11-05","LONDON, ENGLAND","11/2/2019 - 11/6/2019","INVESTOR REGULATION",null,null,null,null,null,"X",null,null,null,856,null,856]
["CHALK, CHRISTINA ","SENIOR SPECIAL COUNSEL","51ST ANNUAL INSTITUTE ON SECURITIES REGULATION","PRACTICING LAW INSTITUTE","2019-11-05","2019-11-05","NEW YORK, NY","2019-11-05","PRACTICING LAW INSTITUTE",null,null,null,null,null,"X",null,null,null,432,null,{"$f":"SUM(R21:T21)","v":432}]
["ALEXANDER, CINDY","FINANCIAL ECONOMIST ","LAW AND ECONOMICS SEMINAR","UNIVERSITY OF VIRGINIA SCHOOL OF LAW","2019-11-18","2019-11-20","CHARLOTTESVILLE, VA","11/18/2019 - 11/20/2019",{"$f":"D22","v":"UNIVERSITY OF VIRGINIA SCHOOL OF LAW"},null,null,null,null,"X",null,null,null,400,null,null,{"$f":"SUM(R22:T22)","v":400}]
["JACKSON, ROBERT","COMMISSIONER","LECTURE ON THE 45TH ANNIVERSARY OF COMMISSIONER AA SOMMER'S NOTRE DAME ADDRESS","NOTRE DAME UNIVERSITY - MENDOZA COLLEGE OF BUSINESS","2019-11-22","2019-11-22","SOUTH BEND, IN","11/21/2019 - 11/23/2019","NOTRE DAME UNIVERSITY - MENDOZA COLLEGE OF BUSINESS",null,null,null,null,"X","X",null,null,350,739.06,null,1089.06]
["ARMELIN, PATRICIA","ASSOCIATE CHIEF ACCOUNTANT ","35TH ANNUAL SEC REPORTING AND FASB FORUM","PRACTISING LAW INSTITIUTE","2019-12-01","2019-12-02","SAN FRANCISCO, CA","12/1/2019 - 12/2/2019","PRACTISING LAW INSTITIUTE",null,null,null,null,"X","X",null,null,290.45999999999998,1252.5999999999999,null,1543.06]
["DEANE, STEPHEN ","ENGAGEMENT ADVISOR","ASSET MANAGEMENT, INDEX FUNDS AND ETFS","YALE LAW SCHOOL CENTER FOR THE STUDY OF CORPORATE LAW","2019-12-09","2019-12-09","NEW HAVEN, CT","12/8/2019 - 12/10/2019",{"$f":"D25","v":"YALE LAW SCHOOL CENTER FOR THE STUDY OF CORPORATE LAW"},null,null,null,null,"X",null,null,null,772,null,null,{"$f":"SUM(R25:T25)","v":772}]
["BLASS, DALIA","DIRECTOR","  2019 WEIL, GOTSHAL & MANGES ROUNDTABLE","YALE LAW SCHOOL CENTER FOR THE STUDY OF CORPORATE LAW","2019-12-09","2019-12-09","NEW HAVEN, CT","2019-12-09",{"$f":"D26","v":"YALE LAW SCHOOL CENTER FOR THE STUDY OF CORPORATE LAW"},null,null,null,null,null,"X",null,null,null,521.82000000000005,null,{"$f":"SUM(R26:T26)","v":521.82000000000005}]
["JACKSON, ROBERT","COMMISSIONER","EMERGING MARKETS FINANCE CONFERENCE","VANDERBILT LAW SCHOOL","2019-12-12","2019-12-14","MUMBAI, INDIA","12/11/2019 - 12/15/2019","VANDERBILT LAW SCHOOL",null,null,null,null,"X","X",null,null,500,1843.82,null,2343.8199999999997]
["GILMORE, PATRICK","DEPUTY CHIEF ACCOUNTANT","ANNUAL SEC REPORTING & FASB FORUM","PRACTISING LAW INSTITUTE","2019-12-15","2019-12-16","NEW YORK, NY","12/15/2019 -12/16/2019","PRACTISING LAW INSTITUTE",null,null,null,null,"X","X",null,null,237,400,null,{"$f":"SUM(R28:T28)","v":637}]
["YU, TED","OFFICE CHIEF","“MERGERS & ACQUISITIONS 2020: ADVANCED TRENDS AND DEVELOPMENTS\"","PRACTISING LAW INSTITUTE","2020-01-08","2020-01-09","NEW YORK, NY","1/8/2020 - 1/9/2020","PRACTISING LAW INSTITUTE",null,null,null,null,"X","X",null,null,199,366,null,{"$f":"SUM(R29:T29)","v":565}]
["JACKSON, ROBERT","COMMISSIONER","RICE UNIVERSITY VISIT","RICE UNIVERSITY","2020-01-16","2020-01-17","HOUSTON, TX","1/15/2020 - 1/17/2020",{"$f":"D30","v":"RICE UNIVERSITY"},null,null,null,null,"X","X",null,null,223.95,897.38,null,1121.33]
["HU, EDWIN","COUNSEL TO COMMISSIONER ","RICE UNIVERSITY VISIT","RICE UNIVERSITY ","2020-01-16","2020-01-17","HOUSTON, TX","1/16/2020 - 1/17/2020",{"$f":"D31","v":"RICE UNIVERSITY "},null,null,null,null,"X","X",null,null,212.25,392.6,null,604.85]
["JACKSON, ROBERT","COMMISSIONER","UBC FINANCE SEMINAR","UNIVERSITY OF BRITISH COLUMBIA","2020-01-30","2020-01-31","VANCOUVER, CANADA","1/30/2020 - 1/31/2020","UNIVERSITY OF BRITISH COLUMBIA",null,null,null,null,"X","X",null,null,487,400,null,887]
["JACKSON, ROBERT","COMMISSIONER","UNIVERSITY OF UTAH'S LAW, ECONOMICS & BUSINESS COLLOQUIUM","UNIVERSITY OF UTAH","2020-02-02","2020-02-03","SALT LAKE CITY, UT","2/2/2020 - 2/3/2020","UNIVERSITY OF UTAH",null,null,null,null,"X","X",null,null,467.3,430.24,null,897.54]
["VANOSDALL, JOHN P","DEPUTY CHIEF ACCOUNTANT","ANNUAL SECURITIES REGULATION IN EUROPE","PRACTISING LAW INSTITUTE","2020-02-06","2020-02-07","LONDON, ENGLAND","2/6/2020 - 2/7/2020","PRACTISING LAW INSTITUTE",null,null,null,null,"X","X",null,null,600,2604,null,3204]
["HINMAN, WILLIAM","DIRECTOR","19TH ANNUAL INSTITUTE ON SECURITIES REGULATION IN EUROPE","PRACTISING LAW INSTITUTE","2020-02-06","2020-02-07","LONDON, ENGLAND","2/5/2020 - 2/9/2020","PRACTISING LAW INSTITUTE",null,null,null,null,"X","X",null,null,608,998.68,null,1606.6799999999998]
["BANDY, ANITA","ASSOCIATE DIRECTOR ","19TH ANNUAL INSTITUTE ON SECURITIES REGULATION IN EUROPE","PRACTISING LAW INSTITUTE","2020-02-06","2020-02-07","LONDON, ENGLAND","2/4/2020 - 2/9/2020","PRACTISING LAW INSTITUTE",null,null,null,null,"X","X",null,null,1520,872.05,null,2392.0500000000002]
["TEN SIETHOFF, SARAH ","ASSOCIATE DIRECTOR","REG BI CONFERENCE","THE UNIVERSITY OF TEXAS AT AUSTIN","2020-02-10","2020-02-11","AUSTIN, TX","2/9/2020 - 2/11/2020",{"$f":"D37","v":"THE UNIVERSITY OF TEXAS AT AUSTIN"},null,null,null,null,null,"X","X",null,null,376,100,{"$f":"SUM(R37:T37)","v":476}]
["GONZALEZ, LOURDES","ASSISTANT CHIEF COUNSEL - SALES PRACTICES","PROGRAM ON REGULATION BEST INTEREST","PRACTISING LAW INSTITUTE","2020-02-20","2020-02-20","NEW YORK, NY","2/19/2020 - 2/20/2020",{"$f":"D38","v":"PRACTISING LAW INSTITUTE"},null,null,null,null,null,"X","X",null,null,696.81,182.6,{"$f":"SUM(R38:T38)","v":879.41}]
["JACQUES, MATTHEW","CHIEF ACCOUNTANT","ACCOUNTING FRAUD","THE WHARTON SCHOOL","2020-03-04","2020-03-05","PHILDELPHIA, PA","3/4/2020 -3/5/2020",{"$f":"D39","v":"THE WHARTON SCHOOL"},null,null,null,null,null,"X",null,null,null,277.52,null,{"$f":"SUM(R39:T39)","v":277.52}]
["AVAKIAN, STEPHANIE","CO-DIRECTOR"," SEC ENFORCEMENT","PRINCETON UNIVERSITY","2020-03-04","2020-03-05","PRINCETON, NJ","3/4/2020 -3/5/2020",{"$f":"D40","v":"PRINCETON UNIVERSITY"},null,null,null,null,"X","X","X",null,172,230,75,{"$f":"SUM(R40:T40)","v":477}]
["TEOTIA, SAGAR","CHIEF ACCOUNTANT","CORPORATE GOVERNANCE ","PRACTISING LAW INSTITUTE","2020-03-06","2020-03-06","NEW YORK, NY","2020-03-06","PRACTISING LAW INSTITUTE",null,null,null,null,"X","X",null,null,262,498,null,760]